fUSD/lending_fUSD_20240612
["ID","MTS","AMOUNT","RATE_DAILY","PERIOD"]
[329208777,1718179904791,-500.0,0.00020273,2]
[329208778,1718179904801,-500.0,0.00020273,2]
[329208779,1718179904924,-500.0,0.00020273,2]
[329208780,1718179904943,-274.47083683,0.00020273,2]
[329208781,1718179904955,-1151.02,0.00020273,2]
[329208782,1718179904967,-500.0,0.00020273,2]
[329208783,1718179904977,-500.0,0.00020273,2]
[329208784,1718179904988,-632.89,0.00020273,2]
[329208785,1718179904999,-562.35,0.00020273,2]
[329208786,1718179905012,-500.0,0.00020273,2]
[329208787,1718179905023,-814.74,0.00020273,2]
[329208788,1718179905035,-500.0,0.00020273,2]
[329208789,1718179905046,-788.12,0.00020273,2]
[329208790,1718179905058,-692.77,0.00020273,2]
[329208791,1718179905071,-500.0,0.00020273,2]
[329208792,1718179905083,-801.05,0.00020273,2]
[329208793,1718179905095,-500.0,0.00020273,2]
[329208794,1718179905106,-2426.35,0.00020273,2]
[329208795,1718179905117,-328.39036733,0.00020273,2]
[329208796,1718179905128,-667.95,0.00020273,2]
[329208797,1718179905140,-1312.22,0.00020273,2]
[329208798,1718179905151,-500.0,0.00020273,2]
[329208799,1718179905162,-701.84,0.00020273,2]
[329208800,1718179905173,-855.19,0.00020273,2]
[329208801,1718179905183,-500.0,0.00020273,2]
[329208802,1718179905195,-500.0,0.00020273,2]
[329208803,1718179905205,-500.0,0.00020273,2]
[329208804,1718179905216,-5154.03,0.00020273,2]
[329208805,1718179905228,-500.0,0.00020273,2]
[329208806,1718179905239,-500.0,0.00020273,2]
[329208807,1718179905249,-151.0,0.00020273,2]
[329208808,1718179905260,-571.46,0.00020273,2]
[329208809,1718179905272,-1104.84,0.00020273,2]
[329208810,1718179905284,-1878.34,0.00020273,2]
[329208811,1718179905296,-500.0,0.00020273,2]
[329208812,1718179905307,-500.0,0.00020273,2]
[329208813,1718179905319,-627.95,0.00020273,2]
[329208814,1718179905331,-1013.51,0.00020273,2]
[329208815,1718179905343,-500.0,0.00020273,2]
[329208816,1718179905355,-151.0,0.00020273,2]
[329208817,1718179905367,-1682.34,0.00020273,2]
[329208818,1718179905378,-500.0,0.00020273,2]
[329208819,1718179905390,-554.42,0.00020273,2]
[329208820,1718179905401,-500.0,0.00020273,2]
[329208821,1718179905412,-657.62,0.00020273,2]
[329208822,1718179905424,-556.25,0.00020273,2]
[329208823,1718179905435,-1495.23,0.00020273,2]
[329208824,1718179905446,-1140.33,0.00020273,2]
[329208825,1718179905456,-1341.78,0.00020273,2]
[329208826,1718179905467,-602.14,0.00020273,2]
[329208827,1718179905479,-204.382934,0.00020273,2]
[329208828,1718179905490,-500.0,0.00020273,2]
[329208829,1718179905501,-786.61,0.00020273,2]
[329208830,1718179905512,-204.382934,0.00020273,2]
[329208831,1718179905525,-384.23162703,0.00020273,2]
[329208832,1718179905545,-1464.63,0.00020273,2]
[329208833,1718179905568,-3094.25,0.00020273,2]
[329208834,1718179905582,-548.65,0.00020273,2]
[329208835,1718179905596,-729.37,0.00020273,2]
[329208836,1718179905609,-500.0,0.00020273,2]
[329208837,1718179905622,-500.0,0.00020273,2]
[329208838,1718179905635,-2263.73,0.00020273,2]
[329208839,1718179905645,-765.32,0.00020273,2]
[329208840,1718179905656,-500.0,0.00020273,2]
[329208841,1718179905666,-500.0,0.00020273,2]
[329208842,1718179905677,-1702.33,0.00020273,2]
[329208843,1718179905688,-725.2,0.00020273,2]
[329208844,1718179905700,-1162.18,0.00020273,2]
[329208845,1718179905711,-702.53,0.00020273,2]
[329208846,1718179905721,-356.86544733,0.00020273,2]
[329208847,1718179905732,-1306.52,0.00020273,2]
[329208848,1718179905742,-767.7,0.00020273,2]
[329208849,1718179905753,-669.7,0.00020273,2]
[329208850,1718179905764,-4404.89,0.00020273,2]
[329208851,1718179905774,-8345.51,0.00020273,2]
[329208852,1718179905785,-5540.12,0.00020273,2]
[329208853,1718179905796,-500.0,0.00020273,2]
[329208854,1718179905807,-3202.06,0.00020273,2]
[329208855,1718179905841,-645.85,0.00020273,2]
[329208856,1718179905858,-708.44,0.00020273,2]
[329208857,1718179905870,-440.396966,0.00020273,2]
[329208858,1718179905882,-1864.65,0.00020273,2]
[329208859,1718179905897,-440.396966,0.00020273,2]
[329208860,1718179905910,-650.82,0.00020273,2]
[329208861,1718179905924,-3275.86,0.00020273,2]
[329208862,1718179905937,-3174.73,0.00020273,2]
[329208863,1718179905948,-1358.37,0.00020273,2]
[329208864,1718179905963,-532.25,0.00020273,2]
[329208865,1718179905974,-758.42,0.00020273,2]
[329208866,1718179905985,-1640.18,0.00020273,2]
[329208867,1718179905997,-1305.49,0.00020273,2]
[329208868,1718179906011,-500.0,0.00020273,2]
[329208869,1718179906024,-869.55,0.00020273,2]
[329208870,1718179906036,-741.75,0.00020273,2]
[329208871,1718179906047,-221.69900692,0.00020273,2]
[329208872,1718179906059,-1607.87,0.00020273,2]
[329208873,1718179906070,-500.0,0.00020273,2]
[329208874,1718179906080,-2431.96,0.00020273,2]
[329208875,1718179906091,-3330.66,0.00020273,2]
[329208876,1718179906104,-500.0,0.00020273,2]
[329208877,1718179906115,-500.0,0.00020273,2]
[329208878,1718179906125,-500.0,0.00020273,2]
[329208879,1718179906137,-13640.9,0.00020273,2]
[329208880,1718179906149,-20922.27,0.00020273,2]
[329208881,1718179906160,-985.74,0.00020273,2]
[329208882,1718179906170,-781.81,0.00020273,2]
[329208883,1718179906181,-2448.83,0.00020273,2]
[329208884,1718179906191,-646.05,0.00020273,2]
[329208885,1718179906201,-643.62651577,0.00020273,2]
[329208886,1718179906212,-151.0,0.00020273,2]
[329208887,1718179906223,-959.76,0.00020273,2]
[329208888,1718179906235,-1431.31,0.00020273,2]
[329208889,1718179906247,-1683.61,0.00020273,2]
[329208890,1718179906258,-732.06,0.00020273,2]
[329208891,1718179906268,-500.0,0.00020273,2]
[329208892,1718179906280,-752.97,0.00020273,2]
[329208893,1718179906290,-528.34,0.00020273,2]
[329208894,1718179906302,-8377.53,0.00020273,2]
[329208895,1718179906314,-2216.48,0.00020273,2]
[329208896,1718179906327,-3266.79,0.00020273,2]
[329208897,1718179906338,-850.88,0.00020273,2]
[329208898,1718179906349,-1690.57,0.00020273,2]
[329208899,1718179906361,-599.3,0.00020273,2]
[329208900,1718179906373,-1406.49,0.00020273,2]
[329208901,1718179906384,-500.0,0.00020273,2]
[329208902,1718179906396,-2196.58,0.00020273,2]
[329208903,1718179906407,-1073.07,0.00020273,2]
[329208904,1718179906419,-2273.25,0.00020273,2]
[329208905,1718179906430,-798.97,0.00020273,2]
[329208906,1718179906448,-611.43,0.00020273,2]
[329208907,1718179906460,-1156.44,0.00020273,2]
[329208908,1718179906472,-946.15,0.00020273,2]
[329208909,1718179906484,-500.0,0.00020273,2]
[329208910,1718179906497,-1976.41,0.00020273,2]
[329208911,1718179906508,-1214.62,0.00020273,2]
[329208912,1718179906520,-500.0,0.00020273,2]
[329208913,1718179906534,-500.0,0.00020273,2]
[329208914,1718179906544,-827.97,0.00020273,2]
[329208915,1718179906559,-2301.96,0.00020273,2]
[329208916,1718179906572,-500.0,0.00020273,2]
[329208917,1718179906585,-500.0,0.00020273,2]
[329208918,1718179906596,-1787.41,0.00020273,2]
[329208919,1718179906608,-712.85,0.00020273,2]
[329208920,1718179906619,-776.27,0.00020273,2]
[329208921,1718179906631,-2018.59,0.00020273,2]
[329208922,1718179906643,-500.0,0.00020273,2]
[329208923,1718179906654,-3499.28,0.00020273,2]
[329208924,1718179906665,-2334.85,0.00020273,2]
[329208925,1718179906676,-500.0,0.00020273,2]
[329208926,1718179906687,-1624.86,0.00020273,2]
[329208927,1718179906699,-151.0,0.00020273,2]
[329208928,1718179906719,-1631.49,0.00020273,2]
[329208929,1718179906731,-500.0,0.00020273,2]
[329208930,1718179906742,-522.67,0.00020273,2]
[329208931,1718179906753,-500.0,0.00020273,2]
[329208932,1718179906764,-588.24,0.00020273,2]
[329208933,1718179906775,-581.13,0.00020273,2]
[329208934,1718179906789,-2080.69,0.00020273,2]
[329208935,1718179906801,-1563.88,0.00020273,2]
[329208936,1718179906823,-579.52,0.00020273,2]
[329208937,1718179906848,-500.0,0.00020273,2]
[329208938,1718179906859,-1713.36,0.00020273,2]
[329208939,1718179906870,-815.55,0.00020273,2]
[329208940,1718179906881,-500.0,0.00020273,2]
[329208941,1718179906891,-630.18,0.00020273,2]
[329208942,1718179906901,-561.92,0.00020273,2]
[329208943,1718179906911,-862.44,0.00020273,2]
[329208944,1718179906921,-2346.36,0.00020273,2]
[329208945,1718179906936,-841.69,0.00020273,2]
[329208946,1718179906946,-1435.09,0.00020273,2]
[329208947,1718179906957,-680.87,0.00020273,2]
[329208948,1718179906968,-216.93774582,0.00020273,2]
[329208949,1718179906979,-500.0,0.00020273,2]
[329208950,1718179906991,-500.0,0.00020273,2]
[329208951,1718179907002,-1088.82,0.00020273,2]
[329208952,1718179907015,-1513.03,0.00020273,2]
[329208953,1718179907029,-500.0,0.00020273,2]
[329208954,1718179907039,-598.23,0.00020273,2]
[329208955,1718179907051,-1610.34,0.00020273,2]
[329208956,1718179907062,-1146.85,0.00020273,2]
[329208957,1718179907073,-2935.06,0.00020273,2]
[329208958,1718179907083,-1560.5,0.00020273,2]
[329208959,1718179907094,-1110.46,0.00020273,2]
[329208960,1718179907105,-3368.07,0.00020273,2]
[329208961,1718179907117,-500.0,0.00020273,2]
[329208962,1718179907129,-367.611845,0.00020273,2]
[329208963,1718179907141,-1458.49,0.00020273,2]
[329208964,1718179907154,-367.611845,0.00020273,2]
[329208965,1718179907165,-1622.89,0.00020273,2]
[329208966,1718179907176,-500.0,0.00020273,2]
[329208967,1718179907186,-659.53,0.00020273,2]
[329208968,1718179907198,-500.0,0.00020273,2]
[329208969,1718179907209,-1850.34,0.00020273,2]
[329208970,1718179907219,-500.0,0.00020273,2]
[329208971,1718179907229,-4181.59,0.00020273,2]
[329208972,1718179907239,-4021.68,0.00020273,2]
[329208973,1718179907249,-654.73,0.00020273,2]
[329208974,1718179907261,-6014.5,0.00020273,2]
[329208975,1718179907272,-1952.21,0.00020273,2]
[329208976,1718179907286,-500.0,0.00020273,2]
[329208977,1718179907298,-244.91517239,0.00020273,2]
[329208978,1718179907310,-1117.79,0.00020273,2]
[329208979,1718179907322,-1297.98,0.00020273,2]
[329208980,1718179907333,-564.66,0.00020273,2]
[329208981,1718179907345,-500.0,0.00020273,2]
[329208982,1718179907356,-519.65,0.00020273,2]
[329208983,1718179907367,-1076.94,0.00020273,2]
[329208984,1718179907378,-2703.35,0.00020273,2]
[329208985,1718179907388,-1166.76,0.00020273,2]
[329208986,1718179907399,-1069.66,0.00020273,2]
[329208987,1718179907410,-1867.83,0.00020273,2]
[329208988,1718179907421,-500.0,0.00020273,2]
[329208989,1718179907432,-565.97,0.00020273,2]
[329208990,1718179907446,-776.3,0.00020273,2]
[329208991,1718179907527,-1848.86,0.00020273,2]
[329208992,1718179907539,-521.86,0.00020273,2]
[329208993,1718179907549,-500.0,0.00020273,2]
[329208994,1718179907560,-2575.38,0.00020273,2]
[329208995,1718179907571,-2537.91,0.00020273,2]
[329208996,1718179907581,-1628.72,0.00020273,2]
[329208997,1718179907592,-500.0,0.00020273,2]
[329208998,1718179907602,-312.92362898,0.00020273,2]
[329208999,1718179907612,-783.13,0.00020273,2]
[329209000,1718179907623,-195.383715,0.00020273,2]
[329209001,1718179907633,-4600.39705797,0.00020285,2]
[329209002,1718179907644,-26088.96205656,0.00020355,2]
[329209003,1718179907654,-201.0,0.0002041,2]
[329209004,1718179907664,-500.0,0.0002041,2]
[329209005,1718179907675,-778.55,0.0002041,2]
[329209006,1718179907685,-623.99242014,0.0002041,2]
[329209007,1718179907695,-500.0,0.0002041,2]
[329209008,1718179907706,-500.0,0.0002041,2]
[329209009,1718179907716,-500.0,0.0002041,2]
[329209010,1718179907727,-500.0,0.0002041,2]
[329209011,1718179907737,-500.0,0.0002041,2]
[329209012,1718179907748,-500.0,0.0002041,2]
[329209013,1718179907759,-592.95,0.0002041,2]
[329209014,1718179907769,-500.0,0.0002041,2]
[329209015,1718179907780,-764.7,0.0002041,2]
[329209016,1718179907791,-773.85,0.0002041,2]
[329209017,1718179907801,-500.0,0.0002041,2]
[329209018,1718179907825,-500.0,0.0002041,2]
[329209019,1718179907841,-500.0,0.0002041,2]
[329209020,1718179907852,-500.0,0.0002041,2]
[329209021,1718179907862,-500.0,0.0002041,2]
[329209022,1718179907875,-296.97992169,0.0002041,2]
[329209023,1718179907885,-667.4,0.0002041,2]
[329209024,1718179907895,-500.0,0.0002041,2]
[329209025,1718179907905,-500.0,0.0002041,2]
[329209026,1718179907916,-500.0,0.0002041,2]
[329209027,1718179907928,-500.0,0.0002041,2]
[329209028,1718179907939,-500.0,0.0002041,2]
[329209029,1718179907950,-500.0,0.0002041,2]
[329209030,1718179907961,-716.21,0.0002041,2]
[329209031,1718179907972,-500.0,0.0002041,2]
[329209032,1718179907983,-500.0,0.0002041,2]
[329209033,1718179907994,-500.0,0.0002041,2]
[329209034,1718179908006,-697.14,0.0002041,2]
[329209035,1718179908017,-520.80126,0.0002041,2]
[329209036,1718179908027,-500.0,0.0002041,2]
[329209037,1718179908038,-500.0,0.0002041,2]
[329209038,1718179908048,-1218.09,0.0002041,2]
[329209039,1718179908059,-500.0,0.0002041,2]
[329209040,1718179908069,-756.11,0.0002041,2]
[329209041,1718179908079,-651.5,0.0002041,2]
[329209042,1718179908090,-500.0,0.0002041,2]
[329209043,1718179908100,-500.0,0.0002041,2]
[329209044,1718179908110,-2999.85,0.0002041,2]
[329209045,1718179908120,-500.0,0.0002041,2]
[329209046,1718179908130,-500.0,0.0002041,2]
[329209047,1718179908141,-561.25749656,0.0002041,2]
[329209048,1718179908151,-500.0,0.0002041,2]
[329209049,1718179908161,-965.08,0.0002041,2]
[329209050,1718179908172,-500.0,0.0002041,2]
[329209051,1718179908181,-500.0,0.0002041,2]
[329209052,1718179908192,-500.0,0.0002041,2]
[329209053,1718179908202,-500.0,0.0002041,2]
[329209054,1718179908212,-500.0,0.0002041,2]
[329209055,1718179908223,-220.81,0.0002041,2]
[329209056,1718179908233,-334.75895723,0.0002041,2]
[329209057,1718179908243,-778.27,0.0002041,2]
[329209058,1718179908253,-500.0,0.0002041,2]
[329209059,1718179908263,-518.38,0.0002041,2]
[329209060,1718179908274,-500.0,0.0002041,2]
[329209061,1718179908285,-651.15,0.0002041,2]
[329209062,1718179908296,-500.0,0.0002041,2]
[329209063,1718179908306,-544.62,0.0002041,2]
[329209064,1718179908316,-606.45,0.0002041,2]
[329209065,1718179908326,-500.0,0.0002041,2]
[329209066,1718179908337,-1056.74,0.0002041,2]
[329209067,1718179908347,-500.0,0.0002041,2]
[329209068,1718179908357,-500.0,0.0002041,2]
[329209069,1718179908367,-540.46,0.0002041,2]
[329209070,1718179908377,-500.0,0.0002041,2]
[329209071,1718179908387,-578.43,0.0002041,2]
[329209072,1718179908397,-1024.84,0.0002041,2]
[329209073,1718179908408,-500.0,0.0002041,2]
[329209074,1718179908418,-500.0,0.0002041,2]
[329209075,1718179908428,-500.0,0.0002041,2]
[329209076,1718179908439,-500.0,0.0002041,2]
[329209077,1718179908449,-500.0,0.0002041,2]
[329209078,1718179908460,-559.38736965,0.0002041,2]
[329209079,1718179908470,-536.07,0.0002041,2]
[329209080,1718179908481,-500.0,0.0002041,2]
[329209081,1718179908491,-500.0,0.0002041,2]
[329209082,1718179908501,-707.31,0.0002041,2]
[329209083,1718179908511,-1691.32,0.0002041,2]
[329209084,1718179908521,-500.0,0.0002041,2]
[329209085,1718179908533,-500.0,0.0002041,2]
[329209086,1718179908543,-718.6,0.0002041,2]
[329209087,1718179908552,-1353.94,0.0002041,2]
[329209088,1718179908563,-676.25,0.0002041,2]
[329209089,1718179908573,-606.42461716,0.0002041,2]
[329209090,1718179908585,-500.0,0.0002041,2]
[329209091,1718179908596,-836.78,0.0002041,2]
[329209092,1718179908607,-150.0,0.0002041,2]
[329209093,1718179908617,-500.0,0.0002041,2]
[329209094,1718179908628,-854.16,0.0002041,2]
[329209095,1718179908638,-500.0,0.0002041,2]
[329209096,1718179908649,-500.0,0.0002041,2]
[329209097,1718179908668,-835.22,0.0002041,2]
[329209098,1718179908679,-614.09468248,0.0002041,2]
[329209099,1718179908690,-500.0,0.0002041,2]
[329209100,1718179908700,-500.0,0.0002041,2]
[329209101,1718179908711,-500.0,0.0002041,2]
[329209102,1718179908722,-426.23747587,0.0002041,2]
[329209103,1718179908732,-587.12,0.0002041,2]
[329209104,1718179908743,-500.0,0.0002041,2]
[329209105,1718179908754,-2397.48,0.0002041,2]
[329209106,1718179908765,-500.0,0.0002041,2]
[329209107,1718179908775,-695.08,0.0002041,2]
[329209108,1718179908787,-500.0,0.0002041,2]
[329209109,1718179908797,-500.0,0.0002041,2]
[329209110,1718179908808,-500.0,0.0002041,2]
[329209111,1718179908824,-1151.02,0.0002041,2]
[329209112,1718179908839,-500.0,0.0002041,2]
[329209113,1718179908849,-433.18867083,0.0002041,2]
[329209114,1718179908859,-632.89,0.0002041,2]
[329209115,1718179908869,-562.35,0.0002041,2]
[329209116,1718179908879,-500.0,0.0002041,2]
[329209117,1718179908889,-814.74,0.0002041,2]
[329209118,1718179908899,-500.0,0.0002041,2]
[329209119,1718179908909,-788.12,0.0002041,2]
[329209120,1718179908919,-692.77,0.0002041,2]
[329209121,1718179908933,-500.0,0.0002041,2]
[329209122,1718179908944,-801.05,0.0002041,2]
[329209123,1718179908954,-2426.35,0.0002041,2]
[329209124,1718179908965,-500.0,0.0002041,2]
[329209125,1718179908975,-667.95,0.0002041,2]
[329209126,1718179908986,-1312.22,0.0002041,2]
[329209127,1718179908996,-500.0,0.0002041,2]
[329209128,1718179909008,-701.84,0.0002041,2]
[329209129,1718179909018,-855.19,0.0002041,2]
[329209130,1718179909030,-500.0,0.0002041,2]
[329209131,1718179909040,-500.0,0.0002041,2]
[329209132,1718179909051,-500.0,0.0002041,2]
[329209133,1718179909061,-500.0,0.0002041,2]
[329209134,1718179909072,-5154.03,0.0002041,2]
[329209135,1718179909082,-158.595944,0.0002041,2]
[329209136,1718179909093,-571.46,0.0002041,2]
[329209137,1718179909104,-500.0,0.0002041,2]
[329209138,1718179909115,-1104.84,0.0002041,2]
[329209139,1718179909126,-1878.34,0.0002041,2]
[329209140,1718179909136,-500.0,0.0002041,2]
[329209141,1718179909147,-500.0,0.0002041,2]
[329209142,1718179909157,-627.95,0.0002041,2]
[329209143,1718179909167,-1013.51,0.0002041,2]
[329209144,1718179909178,-500.0,0.0002041,2]
[329209145,1718179909188,-1682.34,0.0002041,2]
[329209146,1718179909199,-500.0,0.0002041,2]
[329209147,1718179909209,-263.32056749,0.0002041,2]
[329209148,1718179909221,-554.42,0.0002041,2]
[329209149,1718179909232,-657.62,0.0002041,2]
[329209150,1718179909244,-556.25,0.0002041,2]
[329209151,1718179909255,-1495.23,0.0002041,2]
[329209152,1718179909266,-1140.33,0.0002041,2]
[329209153,1718179909277,-1341.78,0.0002041,2]
[329209154,1718179909288,-602.14,0.0002041,2]
[329209155,1718179909299,-500.0,0.0002041,2]
[329209156,1718179909309,-786.61,0.0002041,2]
[329209157,1718179909321,-1464.63,0.0002041,2]
[329209158,1718179909332,-3094.25,0.0002041,2]
[329209159,1718179909344,-548.65,0.0002041,2]
[329209160,1718179909355,-729.37,0.0002041,2]
[329209161,1718179909365,-500.0,0.0002041,2]
[329209162,1718179909375,-500.0,0.0002041,2]
[329209163,1718179909385,-2263.73,0.0002041,2]
[329209164,1718179909395,-765.32,0.0002041,2]
[329209165,1718179909405,-500.0,0.0002041,2]
[329209166,1718179909415,-500.0,0.0002041,2]
[329209167,1718179909426,-1702.33,0.0002041,2]
[329209168,1718179909436,-725.2,0.0002041,2]
[329209169,1718179909446,-1162.18,0.0002041,2]
[329209170,1718179909457,-702.53,0.0002041,2]
[329209171,1718179909467,-1306.52,0.0002041,2]
[329209172,1718179909477,-767.7,0.0002041,2]
[329209173,1718179909487,-669.7,0.0002041,2]
[329209174,1718179909497,-4404.89,0.0002041,2]
[329209175,1718179909508,-8345.51,0.0002041,2]
[329209176,1718179909519,-500.0,0.0002041,2]
[329209177,1718179909531,-5540.12,0.0002041,2]
[329209178,1718179909542,-3202.06,0.0002041,2]
[329209179,1718179909551,-645.85,0.0002041,2]
[329209180,1718179909562,-708.44,0.0002041,2]
[329209181,1718179909574,-440.396966,0.0002041,2]
[329209182,1718179909586,-1864.65,0.0002041,2]
[329209183,1718179909596,-440.396963,0.0002041,2]
[329209184,1718179909608,-650.82,0.0002041,2]
[329209185,1718179909618,-3275.86,0.0002041,2]
[329209186,1718179909629,-3174.73,0.0002041,2]
[329209187,1718179909639,-532.25,0.0002041,2]
[329209188,1718179909649,-1358.37,0.0002041,2]
[329209189,1718179909660,-758.42,0.0002041,2]
[329209190,1718179909670,-1640.18,0.0002041,2]
[329209191,1718179909680,-1305.49,0.0002041,2]
[329209192,1718179909690,-500.0,0.0002041,2]
[329209193,1718179909700,-869.55,0.0002041,2]
[329209194,1718179909711,-741.75,0.0002041,2]
[329209195,1718179909722,-1607.87,0.0002041,2]
[329209196,1718179909734,-500.0,0.0002041,2]
[329209197,1718179909749,-2431.96,0.0002041,2]
[329209198,1718179909761,-3330.66,0.0002041,2]
[329209199,1718179909773,-500.0,0.0002041,2]
[329209200,1718179909785,-500.0,0.0002041,2]
[329209201,1718179909795,-500.0,0.0002041,2]
[329209202,1718179909806,-13640.9,0.0002041,2]
[329209203,1718179909842,-20922.27,0.0002041,2]
[329209204,1718179909853,-985.74,0.0002041,2]
[329209205,1718179909863,-781.81,0.0002041,2]
[329209206,1718179909874,-2448.83,0.0002041,2]
[329209207,1718179909885,-646.05,0.0002041,2]
[329209208,1718179909897,-165.539746,0.0002041,2]
[329209209,1718179909908,-959.76,0.0002041,2]
[329209210,1718179909919,-1431.31,0.0002041,2]
[329209211,1718179909932,-1683.61,0.0002041,2]
[329209212,1718179909942,-732.06,0.0002041,2]
[329209213,1718179909952,-500.0,0.0002041,2]
[329209214,1718179909963,-752.97,0.0002041,2]
[329209215,1718179909975,-528.34,0.0002041,2]
[329209216,1718179909987,-8377.53,0.0002041,2]
[329209217,1718179909998,-2216.48,0.0002041,2]
[329209218,1718179910011,-3266.79,0.0002041,2]
[329209219,1718179910021,-850.88,0.0002041,2]
[329209220,1718179910034,-1690.57,0.0002041,2]
[329209221,1718179910044,-599.3,0.0002041,2]
[329209222,1718179910054,-1406.49,0.0002041,2]
[329209223,1718179910064,-500.0,0.0002041,2]
[329209224,1718179910074,-2196.58,0.0002041,2]
[329209225,1718179910085,-1073.07,0.0002041,2]
[329209226,1718179910095,-2273.25,0.0002041,2]
[329209227,1718179910107,-798.97,0.0002041,2]
[329209228,1718179910118,-611.43,0.0002041,2]
[329209229,1718179910130,-1156.44,0.0002041,2]
[329209230,1718179910141,-946.15,0.0002041,2]
[329209231,1718179910151,-500.0,0.0002041,2]
[329209232,1718179910161,-1976.41,0.0002041,2]
[329209233,1718179910171,-1214.62,0.0002041,2]
[329209234,1718179910181,-500.0,0.0002041,2]
[329209235,1718179910191,-500.0,0.0002041,2]
[329209236,1718179910201,-827.97,0.0002041,2]
[329209237,1718179910211,-2301.96,0.0002041,2]
[329209238,1718179910221,-500.0,0.0002041,2]
[329209239,1718179910231,-184.57886522,0.0002041,2]
[329209240,1718179910241,-1787.41,0.0002041,2]
[329209241,1718179910252,-712.85,0.0002041,2]
[329209242,1718179910264,-776.27,0.0002041,2]
[329209243,1718179910275,-2018.59,0.0002041,2]
[329209244,1718179910287,-500.0,0.0002041,2]
[329209245,1718179910297,-3499.28,0.0002041,2]
[329209246,1718179910307,-2334.85,0.0002041,2]
[329209247,1718179910319,-500.0,0.0002041,2]
[329209248,1718179910329,-1624.86,0.0002041,2]
[329209249,1718179910339,-1631.49,0.0002041,2]
[329209250,1718179910350,-500.0,0.0002041,2]
[329209251,1718179910362,-522.67,0.0002041,2]
[329209252,1718179910372,-500.0,0.0002041,2]
[329209253,1718179910382,-588.24,0.0002041,2]
[329209254,1718179910393,-581.13,0.0002041,2]
[329209255,1718179910404,-2080.69,0.0002041,2]
[329209256,1718179910415,-1563.88,0.0002041,2]
[329209257,1718179910425,-579.52,0.0002041,2]
[329209258,1718179910436,-500.0,0.0002041,2]
[329209259,1718179910447,-1713.36,0.0002041,2]
[329209260,1718179910456,-815.55,0.0002041,2]
[329209261,1718179910466,-500.0,0.0002041,2]
[329209262,1718179910475,-630.18,0.0002041,2]
[329209263,1718179910485,-561.92,0.0002041,2]
[329209264,1718179910495,-862.44,0.0002041,2]
[329209265,1718179910505,-2346.36,0.0002041,2]
[329209266,1718179910515,-841.69,0.0002041,2]
[329209267,1718179910526,-1435.09,0.0002041,2]
[329209268,1718179910537,-680.87,0.0002041,2]
[329209269,1718179910547,-419.44498423,0.0002041,2]
[329209270,1718179910558,-500.0,0.0002041,2]
[329209271,1718179910568,-1088.82,0.0002041,2]
[329209272,1718179910578,-1513.03,0.0002041,2]
[329209273,1718179910589,-500.0,0.0002041,2]
[329209274,1718179910600,-598.23,0.0002041,2]
[329209275,1718179910611,-1610.34,0.0002041,2]
[329209276,1718179910621,-1146.85,0.0002041,2]